bitfinex/quotes_ETHUSD_20250724
["timestamp","ask_amount","ask_price","bid_price","bid_amount"]
[1753351561991,0.1368,3652.2,3651.8,1.273]
[1753351562193,0.1368,3652.2,3652.0,2.73820513]
[1753351562355,2.77757525,3652.9,3651.9,0.459]
[1753351562356,0.15229717,3652.8,3651.9,0.459]
[1753351562692,0.1368,3652.8,3652.3,0.1368]
[1753351563102,0.1368,3652.8,3652.4,1.8105]
[1753351563270,0.1368,3652.8,3652.6,2.73773136]
[1753351563607,0.04,3652.9,3652.5,0.459]
[1753351563893,0.1768,3652.9,3652.5,0.459]
[1753351564100,0.1768,3652.9,3652.5,3.19684628]
[1753351564276,0.04,3652.9,3652.7,2.7376967]
[1753351564465,0.04,3652.9,3652.8,0.5958]
[1753351565796,0.04,3652.9,3652.8,0.459]
[1753351566005,2.91435098,3652.9,3652.8,0.459]
[1753351566564,2.73785078,3652.5,3652.4,1.3515]
[1753351566794,2.73800071,3652.3,3652.2,0.459]
[1753351566999,0.1368,3652.3,3652.1,0.001]
[1753351567578,2.87480629,3652.3,3652.2,0.4737]
[1753351567767,2.73807568,3652.2,3652.1,0.001]
[1753351568802,2.73807568,3652.2,3652.1,0.4747]
[1753351569100,2.73807568,3652.2,3652.1,0.001]
[1753351569506,2.74627568,3652.2,3652.1,0.4747]
[1753351569872,2.74627568,3652.2,3652.1,0.001]
[1753351574292,2.78050162,3652.2,3652.1,0.001]
[1753351574535,3.21580162,3652.2,3652.1,0.001]
[1753351574738,3.36100077,3652.2,3652.1,1e-08]
[1753351574942,3.36920097,3652.2,3652.1,1e-08]
[1753351575140,3.36100077,3652.2,3652.1,1e-08]
[1753351575346,3.36920097,3652.2,3652.1,1e-08]
[1753351575681,3.95818601,3652.2,3652.1,1e-08]
[1753351576257,3.36920097,3652.2,3652.1,1e-08]
[1753351576562,2.89967503,3652.2,3652.1,1e-08]
[1753351576765,2.74627588,3652.2,3652.1,1e-08]
[1753351576938,2.73807568,3652.2,3652.1,0.47370001]
[1753351577623,2.73807568,3652.2,3652.1,1e-08]
[1753351577827,3.18157588,3652.2,3652.1,1e-08]
[1753351580552,3.33506115,3652.2,3652.1,1e-08]
[1753351580747,3.92340544,3652.2,3652.1,1e-08]
[1753351581059,3.33506115,3652.2,3652.1,1e-08]
[1753351581262,3.88506115,3652.2,3652.1,1e-08]
[1753351581471,4.7153071,3652.2,3652.1,1e-08]
[1753351581846,5.33787733,3652.2,3652.1,1e-08]
[1753351583080,6.31731841,3652.2,3652.1,1e-08]
[1753351583284,6.28309247,3652.2,3652.1,1e-08]
[1753351583580,4.7153071,3652.2,3652.1,1e-08]
[1753351583777,4.74953304,3652.2,3652.1,1e-08]
[1753351583966,4.19133284,3652.2,3652.1,1e-08]
[1753351584167,4.88070203,3652.2,3652.1,1e-08]
[1753351584372,3.90126095,3652.2,3652.1,1e-08]
[1753351584897,3.90946124,3652.2,3652.1,1e-08]
[1753351586090,4.64263571,3652.2,3652.1,1e-08]
[1753351587099,4.64236869,3652.2,3652.1,1e-08]
[1753351587302,11.69475431,3652.2,3652.1,1e-08]
[1753351587503,17.6780986,3652.2,3652.1,1e-08]
[1753351587878,19.46341724,3652.2,3652.1,1e-08]
[1753351588084,18.48397616,3652.2,3652.1,1e-08]
[1753351588279,18.47577587,3652.2,3652.1,1e-08]
[1753351588505,19.45721695,3652.2,3652.1,1e-08]
[1753351588693,18.48250612,3652.2,3652.1,1e-08]
[1753351588892,21.48250612,3652.2,3652.1,1e-08]
[1753351589409,22.45899698,3652.2,3652.1,1e-08]
[1753351590401,2.73913353,3650.8,3650.5,1.28710001]
[1753351590604,2.73908198,3650.9,3650.5,1.28710001]
[1753351590802,0.1368,3650.6,3650.5,1.28710001]
[1753351591709,2.87607573,3650.6,3650.5,1.28710001]
[1753351591897,3.31610598,3650.6,3650.5,1.28710001]
[1753351592103,2.88080598,3650.6,3650.5,1.28710001]
[1753351592601,2.73950086,3650.3,3650.2,0.4737]
[1753351592909,0.1368,3650.3,3650.2,0.4737]
[1753351593080,0.14500267,3650.3,3650.2,0.4737]
[1753351593407,0.14500267,3650.3,3650.1,0.04]
[1753351593408,2.73957591,3650.2,3650.1,0.04]
[1753351593988,2.74777858,3650.2,3650.1,0.5137]
[1753351594310,2.74777858,3650.2,3650.1,0.04]
[1753351595306,8.05877858,3650.2,3650.1,0.04]
[1753351595677,8.05057591,3650.2,3650.1,0.04]
[1753351596013,8.05530508,3650.2,3650.1,0.04]
[1753351599640,8.05530508,3650.2,3649.1,1.3417]
[1753351599641,3.0,3650.1,3649.1,1.3417]
[1753351599842,2.74032664,3649.2,3649.1,1.3417]
[1753351600356,2.74032664,3649.2,3649.1,0.04]
[1753351600515,2.74661889,3649.2,3649.1,0.04]
[1753351600872,8.01161889,3649.2,3649.1,0.04]
[1753351601357,2.74070216,3648.7,3648.6,0.001]
[1753351601726,8.00170216,3648.7,3648.6,0.001]
[1753351602128,8.44290216,3648.7,3648.6,0.001]
[1753351602520,15.1516,3650.3,3648.6,1.8069]
[1753351602753,2.74053383,3649.0,3648.7,0.4327]
[1753351603055,0.4412,3649.9,3648.7,0.4327]
[1753351603056,2.74042491,3649.1,3648.7,0.4327]
[1753351603260,2.74042491,3649.1,3648.6,1.3742]
[1753351603452,2.74044379,3649.1,3648.8,0.4327]
[1753351603629,2.74044379,3649.1,3648.6,1.3742]
[1753351603837,5.254,3649.3,3648.6,1.3742]
[1753351603838,2.74053087,3649.0,3648.7,0.4327]
[1753351604455,2.74042636,3649.1,3648.8,0.4327]
[1753351604679,0.4412,3649.9,3648.6,1.3742]
[1753351604680,8.43689307,3650.8,3648.9,0.4327]
[1753351604879,8.43689307,3650.8,3649.0,1.3191]
[1753351604880,2.73927573,3650.6,3649.0,1.3191]
[1753351605065,2.73962369,3650.2,3649.1,0.4327]
[1753351605381,0.00820801,3650.1,3649.5,2.74004153]
[1753351605578,2.7478599,3650.1,3649.5,2.74004153]
[1753351605785,2.7478599,3650.1,3649.6,0.4327]
[1753351605942,0.00820801,3650.1,3649.6,0.4327]
[1753351606143,2.74792431,3650.1,3649.7,1.7111]
[1753351606379,2.74792431,3650.1,3649.8,0.4327]
[1753351606380,0.00820801,3650.1,3649.8,0.4327]
[1753351607439,0.00820801,3650.1,3649.8,3.17256113]
[1753351607642,0.00820801,3650.1,3649.8,0.4327]
[1753351607841,2.73973118,3650.0,3649.7,1.2784]
[1753351608064,2.73980109,3649.9,3649.7,1.2784]
[1753351608265,2.73980109,3649.9,3649.3,1.3514]
[1753351608266,0.00820801,3649.9,3649.3,1.3514]
[1753351608581,2.74017646,3649.4,3649.3,1.3514]
[1753351609086,2.74042157,3649.1,3648.8,1.6708]
[1753351609242,2.7404916,3649.0,3648.8,1.6708]
[1753351609445,2.74055194,3648.9,3648.8,1.2381]
[1753351609668,2.87735194,3648.9,3648.8,1.2381]
[1753351612076,2.74070216,3648.7,3648.6,0.001]
[1753351612306,2.87750216,3648.7,3648.6,0.001]
[1753351616708,3.31870216,3648.7,3648.6,0.001]
[1753351617006,3.3269078,3648.7,3648.6,0.001]
[1753351617169,2.8857078,3648.7,3648.6,0.001]
[1753351617375,3.3269078,3648.7,3648.6,0.001]
[1753351617796,3.31870216,3648.7,3648.6,0.001]
[1753351617998,3.32690963,3648.7,3648.6,0.001]
[1753351618807,8.47290963,3648.7,3648.6,0.001]
[1753351619723,2.74077728,3648.6,3648.5,0.001]
[1753351619926,3.21623699,3648.6,3648.5,0.001]
[1753351620128,3.22444446,3648.6,3648.5,0.001]
[1753351621440,0.00820747,3648.6,3648.5,1.7137]
[1753351621596,0.00820747,3648.6,3648.5,0.4337]
[1753351621786,0.1368,3648.7,3648.5,0.4337]
[1753351621987,0.1368,3648.7,3648.5,2.74185205]
[1753351622338,0.15340703,3649.8,3649.7,4.08525122]
[1753351622534,0.1368,3650.4,3650.2,1.3453]
[1753351622828,0.1368,3650.6,3650.4,2.73942581]
[1753351623134,0.1368,3651.1,3650.5,0.4327]
[1753351623294,0.15340703,3651.6,3650.5,0.4327]
[1753351623626,3.47072216,3651.7,3650.8,4.08442567]
[1753351623627,0.15340703,3651.7,3650.8,4.08442567]
[1753351623827,0.1368,3651.5,3650.8,4.22122567]
[1753351624055,0.04472701,3650.9,3650.8,9.35322567]
[1753351624332,0.04472701,3650.9,3650.8,1.9148]
[1753351624497,0.04472701,3650.9,3650.8,7.0448]
[1753351624713,0.04472701,3650.9,3650.8,1.9148]
[1753351624918,2.78377765,3650.9,3650.8,1.3453]
[1753351625140,0.18152701,3650.9,3650.8,1.3453]
[1753351625656,2.92057765,3650.9,3650.8,1.3453]
[1753351626832,2.73931317,3650.6,3650.4,1.3038]
[1753351627048,2.73935077,3650.5,3650.4,1.3038]
[1753351627253,2.87615077,3650.5,3650.4,1.3038]
[1753351627549,2.88244399,3650.5,3650.4,1.3038]
[1753351629454,2.73962964,3650.2,3650.0,3.0]
[1753351629834,0.00629322,3650.1,3650.0,3.0]
[1753351630357,0.00629322,3650.1,3650.0,3.4591]
[1753351630544,0.00629322,3650.1,3650.0,0.4591]
[1753351631563,0.00629322,3650.1,3650.0,5.5421]
[1753351632448,0.00629322,3650.1,3650.0,5.5291]
[1753351632650,0.00829322,3650.1,3650.0,3.4591]
[1753351633049,2.73972602,3650.0,3649.9,1.3597]
[1753351633360,2.73987615,3649.8,3649.7,5.064]
[1753351633727,2.73987615,3649.8,3649.3,1.3793]
[1753351633728,0.1368,3649.8,3649.3,1.3793]
[1753351633929,0.002,3650.1,3649.2,5.059]
[1753351633930,2.74025155,3649.3,3649.2,5.059]
[1753351634126,2.74049063,3649.0,3648.8,0.1368]
[1753351634463,0.1368,3649.1,3648.9,5.056]
[1753351634670,2.87720247,3649.1,3649.0,5.055]
[1753351634833,2.87720247,3649.1,3649.0,3.0]
[1753351635452,0.1368,3649.1,3649.0,3.0]
[1753351635728,2.88279017,3649.1,3649.0,3.0]
[1753351636433,2.88281562,3649.1,3648.9,5.046]
[1753351636632,0.14238843,3649.1,3648.9,5.046]
[1753351636832,2.88281234,3649.1,3648.9,5.046]
[1753351637266,0.14238843,3649.1,3648.9,5.046]
[1753351637641,2.74047684,3649.0,3648.9,5.046]
[1753351638031,0.00590558,3649.0,3648.9,5.046]
[1753351638559,0.00590558,3649.0,3648.9,5.036]
[1753351639440,2.74638242,3649.0,3648.9,5.036]
[1753351639630,0.00590558,3649.0,3648.7,1.2789]
[1753351639829,0.00590558,3649.0,3648.9,5.027]
[1753351640257,0.00590558,3649.0,3648.9,5.016]
[1753351640532,2.74638242,3649.0,3648.9,5.016]
[1753351641066,2.74638242,3649.0,3648.5,0.001]
[1753351641067,2.74055194,3648.9,3648.8,5.014]
[1753351641444,2.74066244,3648.8,3648.5,0.001]
[1753351641764,2.74066244,3648.8,3648.7,5.009]
[1753351641965,2.74169184,3650.1,3649.3,2.74020348]
[1753351642266,0.1368,3649.6,3649.4,5.4641]
[1753351643254,2.73981649,3649.9,3648.9,4.998]
[1753351643255,0.46995126,3649.5,3648.9,4.998]
[1753351643466,2.74047684,3649.0,3648.9,4.998]
[1753351643757,2.740565,3648.9,3648.5,0.001]
[1753351643948,2.74060095,3648.9,3648.7,4.998]
[1753351644148,2.74060095,3648.9,3648.5,0.001]
[1753351644344,2.74017646,3649.4,3648.6,4.998]
[1753351644550,2.74040888,3649.1,3648.6,4.998]
[1753351644772,2.74048058,3649.0,3648.5,0.001]
[1753351644978,0.4357,3649.5,3648.6,4.99]
[1753351645144,2.74043877,3649.1,3648.6,4.99]
[1753351645475,2.74049032,3649.0,3648.6,4.99]
[1753351645677,2.74056097,3648.9,3648.6,4.99]
[1753351645874,3.44463177,3649.6,3648.5,0.001]
[1753351646063,2.74077728,3648.6,3648.5,0.001]
[1753351646777,3.18468362,3648.6,3648.5,0.001]
[1753351647076,3.21894333,3648.6,3648.5,0.001]
[1753351647377,3.18468362,3648.6,3648.5,0.001]
[1753351648070,2.74115292,3648.1,3648.0,4.014]
[1753351648466,2.74115292,3648.1,3647.7,0.4601]
[1753351648467,2.74122807,3648.0,3647.7,0.001]
[1753351648641,2.74137836,3647.8,3647.7,0.001]
[1753351650318,2.74610588,3647.8,3647.7,0.001]
[1753351651627,2.7803731,3647.8,3647.7,0.001]
[1753351651783,2.74610588,3647.8,3647.7,0.001]
[1753351652183,3.2160731,3647.8,3647.7,0.001]
[1753351652622,3.18180588,3647.8,3647.7,0.001]
[1753351653201,2.88290588,3647.8,3647.7,0.001]
[1753351653606,3.34814558,3647.8,3647.7,0.001]
[1753351653845,3.35443857,3647.8,3647.7,0.001]
[1753351654136,3.32017135,3647.8,3647.7,0.001]
[1753351654295,3.31387836,3647.8,3647.7,0.001]
[1753351654501,3.32017135,3647.8,3647.7,0.001]
[1753351657337,2.74182934,3647.2,3647.1,0.041]
[1753351657524,2.87862934,3647.2,3647.1,0.041]
[1753351657725,3.31771787,3647.2,3647.1,0.041]
[1753351660952,4.56911787,3647.2,3647.1,0.041]
[1753351661560,2.7419797,3647.0,3646.1,0.041]
[1753351661718,0.55,3647.1,3646.1,0.041]
[1753351661719,2.87938131,3646.2,3646.1,0.041]
[1753351661920,3.31288131,3646.2,3646.1,0.041]
[1753351662764,4.01428131,3646.2,3646.1,0.041]
[1753351663158,4.04856357,3646.2,3646.1,0.041]
[1753351663332,4.01428131,3646.2,3646.1,0.041]
[1753351663919,4.59856357,3646.2,3646.1,1e-08]
[1753351664118,12.49956357,3646.2,3646.1,1e-08]
[1753351664321,12.46528131,3646.2,3646.1,1e-08]
[1753351665054,2.74408649,3644.2,3643.9,1.3905]
[1753351665446,0.1376,3644.2,3643.9,1.3905]
[1753351665646,0.1376,3644.2,3644.1,0.4818]
[1753351666859,2.88168649,3644.2,3644.1,0.4818]
[1753351667362,2.88168649,3644.2,3644.1,0.04]
[1753351667669,0.1376,3644.2,3644.1,6.22596179]
[1753351667836,2.7434746,3645.1,3644.4,2.74391886]
[1753351668020,0.1368,3644.9,3644.5,0.4418]
[1753351668355,0.1368,3644.9,3644.6,2.74377038]
[1753351668567,0.7014,3646.4,3644.7,0.4418]
[1753351668870,0.1368,3645.9,3645.3,2.74318627]
[1753351669025,0.1368,3645.9,3645.4,4.44437984]
[1753351669365,0.1368,3646.2,3645.7,0.1368]
[1753351669549,0.00349242,3645.8,3645.5,2.87990278]
[1753351669763,0.1368,3646.0,3645.5,0.1368]
[1753351669938,0.1368,3645.8,3645.4,1.2594]
[1753351670139,2.87969915,3645.8,3645.5,0.4418]
[1753351670454,0.1368,3645.8,3645.6,0.4418]
[1753351670961,0.1368,3645.8,3645.4,1.2594]
[1753351671474,2.87968669,3645.8,3645.4,1.7012]
[1753351671642,2.74301699,3645.7,3645.4,1.7012]
[1753351671840,2.87970937,3645.8,3645.4,1.7012]
[1753351672165,0.1368,3645.8,3645.4,1.2594]
[1753351672336,0.1368,3645.8,3645.5,0.4418]
[1753351672863,0.1368,3645.8,3645.6,0.4418]
[1753351673560,0.1368,3645.8,3645.7,0.4418]
[1753351673765,2.87968222,3645.8,3645.5,0.4418]
[1753351674073,2.87968222,3645.8,3645.4,1.2594]
[1753351674074,0.03428696,3645.7,3645.4,1.2594]
[1753351674236,0.1368,3645.5,3645.4,1.2594]
[1753351675270,0.1368,3645.5,3645.4,4.44438318]
[1753351675271,0.00349242,3645.5,3645.4,4.44438318]
[1753351676348,0.00349242,3645.5,3645.4,7.58118318]
[1753351676543,0.00349242,3645.5,3645.4,4.838]
[1753351676747,0.00349242,3645.5,3645.4,1.2594]
[1753351677291,0.00349242,3645.5,3645.4,1.7012]
[1753351677780,0.00349242,3645.5,3645.4,4.44438318]
[1753351677945,0.00349242,3645.5,3645.4,9.48218318]
[1753351678749,0.00349242,3645.5,3645.4,4.58118318]
[1753351678986,0.00349242,3645.5,3645.4,9.48218318]
[1753351679481,0.00349242,3645.5,3645.4,1.838]
[1753351679686,0.00349242,3645.5,3645.4,6.739]
[1753351680265,0.00349242,3645.5,3645.4,1.7012]
[1753351680464,0.00349242,3645.5,3645.4,1.2594]
[1753351680878,0.00349242,3645.5,3645.4,1.7012]
[1753351681077,0.00349242,3645.5,3645.4,4.44438318]
[1753351681485,0.00349242,3645.5,3645.4,1.7012]
[1753351681993,0.00349242,3645.5,3645.3,5.0368]
[1753351682173,0.00349242,3645.5,3645.3,0.1368]
[1753351682510,0.00349242,3645.5,3645.3,0.5786]
[1753351682672,0.00349242,3645.5,3645.1,1.3664]
[1753351682860,0.1368,3645.4,3645.1,6.2664]
[1753351683059,0.00349242,3645.5,3645.2,0.4418]
[1753351683390,6.29333369,3645.2,3645.1,0.001]
[1753351683615,6.72683369,3645.2,3645.1,0.001]
[1753351683961,6.17875452,3645.2,3645.1,0.001]
[1753351684762,3.17875452,3645.2,3645.1,0.001]
[1753351685998,2.74525452,3645.2,3645.1,0.001]
[1753351686376,7.64425452,3645.2,3645.1,0.001]
[1753351688996,2.74525452,3645.2,3645.1,0.001]
[1753351689399,0.00192083,3645.2,3645.1,0.001]
[1753351689698,0.15362661,3646.0,3645.1,0.001]
[1753351689868,0.00262804,3645.2,3645.1,0.001]
[1753351690302,0.00262804,3645.2,3645.1,2.74440895]
[1753351690476,0.00262804,3645.2,3645.1,4.09830895]
[1753351690677,0.00262804,3645.2,3645.1,1.3549]
[1753351691581,0.00262804,3645.2,3645.1,4.09830895]
[1753351692304,0.00262804,3645.2,3645.1,1.3549]
[1753351692872,0.00262804,3645.2,3645.1,4.09830895]
[1753351693290,0.00262804,3645.2,3645.1,1.4917]
[1753351693506,0.00262804,3645.2,3645.1,7.23510895]
[1753351694014,0.002,3646.2,3645.1,7.23510895]
[1753351694015,0.002,3646.2,3646.1,4.09655653]
[1753351694308,0.002,3646.2,3646.1,9.13035653]
[1753351694475,0.002,3646.2,3646.1,6.3877]
[1753351694676,0.002,3646.2,3646.1,0.1368]
[1753351694908,0.1411098,3646.2,3645.7,1.3243]
[1753351695107,0.1411098,3646.2,3645.7,4.06722385]
[1753351695108,0.1388,3646.2,3645.7,4.06722385]
[1753351695313,0.0023098,3646.1,3645.7,4.06722385]
[1753351695512,0.002,3646.2,3646.1,2.74265653]
[1753351695687,0.002,3646.2,3646.1,2.87945653]
[1753351695877,0.002,3646.2,3646.1,0.1368]
[1753351696209,0.04,3646.9,3646.1,0.1368]
[1753351696210,0.04,3646.9,3646.8,2.74213008]
[1753351696385,0.04,3646.9,3646.8,11.97413008]
[1753351697593,0.04,3646.9,3646.8,7.07813008]
[1753351697796,0.04,3646.9,3646.8,11.97313008]
[1753351698212,0.04,3646.9,3646.8,12.52313008]
[1753351698804,0.40956844,3648.6,3647.7,1.8657]
[1753351699017,0.04,3648.9,3647.7,6.589]
[1753351699241,0.04,3648.9,3648.1,0.55]
[1753351699540,0.04,3648.9,3648.6,2.74077212]
[1753351699738,0.00127039,3648.8,3648.7,4.894]
[1753351700031,0.00127039,3648.8,3648.7,7.63470216]
[1753351700335,0.00127039,3648.8,3648.7,9.00210216]
[1753351700627,0.00127039,3648.8,3648.7,6.2614]
[1753351700829,0.00127039,3648.8,3648.3,4.34536909]
[1753351701013,0.00127039,3648.8,3648.4,4.893]
[1753351701380,0.00127039,3648.8,3648.4,7.63390374]
[1753351701580,0.00127039,3648.8,3648.5,4.892]
[1753351701885,0.00127039,3648.8,3648.7,2.74070216]
[1753351702139,0.00127039,3648.8,3648.7,4.892]
[1753351702725,0.00127039,3648.8,3648.3,1.6042391]
[1753351703135,0.00127039,3648.8,3648.4,4.892]
[1753351703434,0.00127039,3648.8,3648.4,7.63292707]
[1753351703925,0.00127039,3648.8,3648.5,4.891]
[1753351704605,0.00127039,3648.8,3648.6,4.891]
[1753351704840,0.00127039,3648.8,3648.7,4.89]
[1753351705012,2.74085786,3648.5,3648.3,1.3961]
[1753351705341,2.74085786,3648.5,3648.3,1.59876045]
[1753351705342,2.7408524,3648.5,3648.3,1.59876045]
[1753351705497,2.74069812,3648.8,3648.3,1.59876045]
[1753351705702,2.74108862,3648.2,3647.9,1.3568]
[1753351706015,0.07425689,3648.9,3647.5,1.2728]
[1753351706246,2.74124205,3648.0,3647.7,3.1368]
[1753351706607,2.8778981,3648.2,3647.8,4.89]
[1753351706608,2.74130321,3647.9,3647.8,4.89]
[1753351706803,0.1368,3648.2,3647.5,1.61318594]
[1753351707056,2.74140636,3647.8,3647.7,3.0]
[1753351707556,2.74140636,3647.8,3647.7,4.889]
[1753351707723,2.74140636,3647.8,3647.7,7.889]
[1753351708143,0.1368,3647.9,3647.7,4.889]
[1753351708543,2.74137836,3647.8,3647.7,4.889]
[1753351708866,2.74148944,3647.7,3647.5,4.2728]
[1753351709328,0.00127039,3647.6,3647.5,4.47749652]
[1753351709645,0.00127039,3647.6,3647.4,0.1368]
[1753351709830,2.74188025,3647.2,3646.6,7.9342]
[1753351710049,2.741679,3647.4,3646.9,0.1368]
[1753351710358,0.00127039,3647.1,3646.9,0.1368]
[1753351710766,0.00127039,3647.1,3646.9,0.34388221]
[1753351710914,0.00127039,3647.1,3647.0,7.888]
[1753351711114,2.74317491,3647.1,3647.0,4.888]
[1753351711426,0.00127039,3647.1,3647.0,4.888]
[1753351711760,2.74318571,3647.1,3646.9,0.1368]
[1753351711914,0.00127039,3647.1,3647.0,4.888]
[1753351712113,2.87997491,3647.1,3647.0,4.888]
[1753351713353,0.13807039,3647.1,3647.0,4.888]
[1753351714752,2.87997491,3647.1,3647.0,4.888]
[1753351715344,0.13807039,3647.1,3647.0,4.888]
[1753351715684,2.87997491,3647.1,3647.0,4.888]
[1753351716380,0.13807039,3647.1,3647.0,4.887]
[1753351716529,2.87997491,3647.1,3647.0,4.887]
[1753351717042,0.13807039,3647.1,3646.7,0.21012132]
[1753351717225,2.74207028,3646.9,3646.8,4.886]
[1753351717788,2.75027698,3646.9,3646.8,4.886]
[1753351717925,0.0082067,3646.9,3646.6,1.485]
[1753351718121,0.0082067,3646.9,3646.8,4.886]
[1753351718765,0.0082067,3646.9,3646.8,4.885]
[1753351719426,0.0082067,3646.9,3646.8,7.62713008]
[1753351719632,0.0082067,3646.9,3646.8,7.76393008]
[1753351720346,0.0082067,3646.9,3646.8,10.76393008]
[1753351721147,0.0082067,3646.9,3646.8,3.1368]
[1753351721333,0.0082067,3646.9,3646.8,10.62613008]
[1753351722730,0.0082067,3646.9,3646.8,7.884]
[1753351723043,0.0082067,3646.9,3646.8,18.96142315]
[1753351723366,0.0082067,3646.9,3646.8,20.29512315]
[1753351724444,0.0082067,3646.9,3646.8,12.50883008]
[1753351724837,0.0082067,3646.9,3646.8,7.62583008]
[1753351725044,0.0082067,3646.9,3646.8,7.07583008]
[1753351725352,0.0082067,3646.9,3646.8,11.95783008]
[1753351727846,0.0082067,3646.9,3646.8,12.50783008]
[1753351728063,0.0082067,3646.9,3646.8,7.62583008]
[1753351728262,0.0082067,3646.9,3646.8,12.50583008]
[1753351728794,0.0082067,3646.9,3646.8,7.62583008]
[1753351728996,0.0082067,3646.9,3646.8,12.50583008]
[1753351729289,0.0082067,3646.9,3646.8,7.07583008]
[1753351729491,0.0082067,3646.9,3646.8,11.95583008]
[1753351729816,0.0082067,3646.9,3646.8,11.95483008]
[1753351730289,0.0082067,3646.9,3646.8,7.07583008]
[1753351730588,0.0082067,3646.9,3646.8,11.95483008]
[1753351730789,0.0082067,3646.9,3646.8,7.879]
[1753351731252,0.0082067,3646.9,3646.8,10.75793008]
[1753351731589,0.0082067,3646.9,3646.8,8.0158]
[1753351732088,0.0082067,3646.9,3646.8,10.75793008]
[1753351732406,0.0082067,3646.9,3646.8,8.0148]
[1753351732757,0.0082067,3646.9,3646.8,10.75693008]
[1753351733354,0.0082067,3646.9,3646.8,5.87893008]
[1753351733555,0.0082067,3646.9,3646.8,10.75593008]
[1753351734968,0.0082067,3646.9,3646.8,11.22403008]
[1753351736001,0.0082067,3646.9,3646.8,11.77403008]
[1753351736220,0.0082067,3646.9,3646.8,13.01403008]
[1753351736389,0.0082067,3646.9,3646.8,13.01303008]
[1753351736589,0.0082067,3646.9,3646.8,8.13703008]
[1753351736924,0.0082067,3646.9,3646.8,13.01203008]
[1753351737277,0.0082067,3646.9,3646.8,11.99393008]
[1753351738096,0.0082067,3646.9,3646.8,7.11893008]
[1753351738297,0.0082067,3646.9,3646.8,11.99293008]
[1753351738510,0.0082067,3646.9,3646.8,8.0108]
[1753351738813,0.0082067,3646.9,3646.8,10.75293008]
[1753351740016,0.0082067,3646.9,3646.8,5.87893008]
[1753351740315,0.0082067,3646.9,3646.8,10.75193008]
[1753351741412,0.0082067,3646.9,3646.8,10.75293008]
[1753351742311,0.0082067,3646.9,3646.8,10.75193008]
[1753351743074,0.0082067,3646.9,3646.8,3.1378]
[1753351743505,0.0082067,3646.9,3646.8,8.0088]
[1753351743701,0.0082067,3646.9,3646.8,3.1378]
[1753351744121,0.4398067,3646.9,3646.8,8.0078]
[1753351745119,0.4398067,3646.9,3646.8,3.1378]
[1753351745414,3.31866159,3646.9,3646.8,7.87]
[1753351746224,0.5766067,3646.9,3646.8,7.87]
[1753351746726,3.31866159,3646.9,3646.8,7.87]
[1753351746892,3.96176159,3646.9,3646.8,0.001]
[1753351747092,3.96176159,3646.9,3646.8,4.869]
[1753351748415,3.96176159,3646.9,3646.8,4.868]
[1753351750125,1.2197067,3646.9,3646.8,4.868]
[1753351750425,1.2197067,3646.9,3646.8,4.867]
[1753351750806,3.99603727,3646.9,3646.8,0.001]
[1753351751120,3.99603727,3646.9,3646.8,4.867]
[1753351752996,3.99603727,3646.9,3646.8,0.001]
[1753351753331,3.96176159,3646.9,3646.8,4.865]
[1753351754126,3.96176159,3646.9,3646.8,0.001]
[1753351754333,1.2197067,3646.9,3646.8,0.001]
[1753351754633,3.96176159,3646.9,3646.8,0.001]
[1753351756817,3.95355489,3646.9,3646.8,0.001]
[1753351757134,3.95993046,3646.9,3646.8,0.001]
[1753351759639,3.99420614,3646.9,3646.8,0.001]
[1753351760443,3.95993046,3646.9,3646.8,0.001]
[1753351761347,3.99420614,3646.9,3646.8,0.001]
[1753351762709,4.54420614,3646.9,3646.8,1e-08]
[1753351763219,7.54420614,3646.9,3646.8,1e-08]
[1753351763431,7.50355489,3646.9,3646.8,1e-08]
[1753351763633,12.36575447,3646.9,3646.8,1e-08]
[1753351764974,13.36658566,3646.9,3646.8,1e-08]
[1753351765311,27.27588077,3646.9,3646.8,1e-08]
[1753351765546,27.8662995,3646.9,3646.8,1e-08]
[1753351767523,7.8244995,3646.9,3646.8,1e-08]
[1753351767846,11.67595447,3646.9,3646.8,1e-08]
[1753351768222,12.22595447,3646.9,3646.8,1e-08]
[1753351769064,12.22495447,3646.9,3646.8,1e-08]
[1753351769565,12.22395447,3646.9,3646.8,1e-08]
[1753351769992,3.38468131,3646.2,3646.1,0.04]
[1753351770146,11.23468131,3646.2,3646.1,0.04]
[1753351770343,12.24228131,3646.2,3646.1,0.04]
[1753351770542,12.24911008,3646.2,3646.1,0.04]
[1753351771377,8.69811008,3646.2,3646.1,0.04]
[1753351774078,8.69711008,3646.2,3646.1,0.04]
[1753351774276,3.93558422,3645.0,3644.6,0.001]
[1753351774477,11.81587777,3645.0,3644.6,0.001]
[1753351774678,11.78857986,3645.0,3644.6,0.001]
[1753351774866,12.24617986,3645.0,3644.6,0.001]
[1753351775057,12.24617986,3645.0,3644.9,1e-08]
[1753351775375,17.67401508,3645.0,3644.9,1e-08]
[1753351777167,20.0627283,3645.0,3644.9,1e-08]
[1753351777569,20.1995283,3645.0,3644.9,1e-08]
[1753351777948,20.1975283,3645.0,3644.9,1e-08]
[1753351778371,6.29371004,3644.7,3644.6,1e-08]
[1753351778557,11.27451004,3644.7,3644.6,1e-08]
[1753351778760,11.74203058,3644.7,3644.6,1e-08]
[1753351782625,12.38393058,3644.7,3644.6,1e-08]
[1753351782915,3.9358359,3644.4,3644.3,1e-08]
[1753351783119,3.9358359,3644.4,3643.6,0.001]
[1753351783120,2.74446304,3643.7,3643.6,0.001]
[1753351783289,7.58446304,3643.7,3643.6,0.001]
[1753351783607,12.48562415,3643.7,3643.6,1e-08]
[1753351785011,3.2948397,3643.2,3643.1,0.04]
[1753351785184,2.74559332,3642.2,3642.1,1.3369]
[1753351785411,0.1376,3642.2,3642.1,1.3369]
[1753351785882,0.1376,3642.2,3642.1,1.7762]
[1753351786083,0.14455434,3642.2,3642.1,1.7762]
[1753351786617,0.14455434,3642.2,3642.1,1.3369]
[1753351786792,0.14455434,3642.2,3642.1,1.7762]